fUSD/lending_fUSD_20260106
["ID","MTS","AMOUNT","RATE_DAILY","PERIOD"]
[400601571,1767739848986,-160.0,0.000395,30]
[400601573,1767739848995,-158.13,0.00039537,2]
[400601575,1767739849004,-758.4462,0.00039688,30]
[400601577,1767739849014,-1000.0,0.00039713,7]
[400601579,1767739849024,-225.18697532,0.00039722,2]
[400601581,1767739849034,-713.97283296,0.00039864,2]
[400601583,1767739849045,-260.4103811,0.00039864,2]
[400601585,1767739849055,-758.4462,0.00039888,30]
[400601587,1767739849064,-1000.0,0.0003992,7]
[400601589,1767739849073,-602.64326461,0.0004,5]
[400601591,1767739849082,-160.0,0.0004,33]
[400601593,1767739849091,-160.0,0.0004,33]
[400601595,1767739849100,-160.0,0.0004,33]
[400601597,1767739849110,-160.0,0.0004,33]
[400601599,1767739849119,-160.0,0.0004,33]
[400601601,1767739849128,-160.0,0.0004,33]
[400601603,1767739849137,-160.0,0.0004,33]
[400601605,1767739849147,-208.2,0.0004,33]
[400601607,1767739849156,-250.0,0.0004,45]
[400601609,1767739849165,-250.0,0.0004,45]
[400601611,1767739849174,-1040.62,0.0004,30]
[400601613,1767739849183,-250.0,0.0004,45]
[400601615,1767739849193,-1163.55,0.0004,14]
[400601617,1767739849202,-100281.40610859,0.0004,5]
[400601619,1767739849212,-152.0,0.0004,120]
[400601621,1767739849222,-152.0,0.0004,120]
[400601623,1767739849232,-1018.0,0.0004,30]
[400601625,1767739849243,-188.35701994,0.00040011,2]
[400601627,1767739849253,-758.4462,0.00040088,30]
[400601629,1767739849261,-151.0,0.00040097,14]
[400601631,1767739849271,-109679.09,0.000401,2]
[400601633,1767739849280,-1531.04,0.00040111,120]
[400601636,1767739849290,-758.4462,0.00040288,30]
[400601637,1767739849299,-1000.0,0.000403,7]
[400601639,1767739849308,-13388.20199998,0.00040371,15]
[400601642,1767739849317,-4650.59598728,0.00040371,15]
[400601644,1767739849327,-174.15242094,0.000404,2]
[400601646,1767739849336,-740.38982778,0.00040412,2]
[400601648,1767739849345,-270.0455652,0.00040412,2]
[400601649,1767739849354,-1000.0,0.00040415,21]
[400601652,1767739849363,-758.4462,0.00040488,30]
[400601654,1767739849372,-160.0,0.000405,35]
[400601655,1767739849381,-160.0,0.000405,35]
[400601658,1767739849391,-160.0,0.000405,35]
[400601660,1767739849400,-250.0,0.000405,45]
[400601662,1767739849409,-1983.0,0.000405,2]
[400601664,1767739849418,-250.0,0.000405,45]
[400601666,1767739849427,-250.0,0.000405,45]
[400601667,1767739849436,-1000.0,0.00040573,7]
[400601670,1767739849446,-1000.0,0.00040589,7]
[400601671,1767739849456,-152.0,0.000406,120]
[400601673,1767739849465,-500.0,0.00040673,30]
[400601676,1767739849474,-691.39774486,0.00040683,2]
[400601677,1767739849484,-359.76179104,0.00040683,2]
[400601680,1767739849494,-309.29654756,0.00040683,2]
[400601682,1767739849503,-269.71254773,0.00040685,7]
[400601684,1767739849513,-758.4462,0.00040688,30]
[400601686,1767739849522,-1115.9,0.000407,14]
[400601688,1767739849531,-5077.93,0.000407,14]
[400601690,1767739849540,-152.0,0.000407,120]
[400601692,1767739849549,-502.0,0.00040714,14]
[400601694,1767739849559,-153.0,0.00040755,120]
[400601696,1767739849567,-153.0,0.00040769,120]
[400601698,1767739849576,-109679.09,0.000408,2]
[400601700,1767739849585,-500.0,0.00040821,120]
[400601702,1767739849595,-500.0,0.00040821,120]
[400601703,1767739849604,-500.0,0.00040821,120]
[400601705,1767739849613,-500.0,0.00040821,120]
[400601707,1767739849623,-500.0,0.00040821,120]
[400601710,1767739849632,-500.0,0.00040821,120]
[400601711,1767739849641,-500.0,0.00040821,120]
[400601713,1767739849650,-500.0,0.00040821,120]
[400601715,1767739849660,-500.0,0.00040821,120]
[400601717,1767739849669,-500.0,0.00040821,120]
[400601719,1767739849679,-500.0,0.00040821,120]
[400601722,1767739849689,-500.0,0.00040821,120]
[400601724,1767739849698,-205.461604,0.00040821,120]
[400601726,1767739849708,-153.0,0.00040855,120]
[400601728,1767739849717,-153.0,0.00040869,120]
[400601730,1767739849727,-758.4462,0.00040888,30]
[400601732,1767739849737,-169.0,0.00040891,120]
[400601734,1767739849747,-207.0,0.0004093,30]
[400601736,1767739849756,-153.0,0.00040955,120]
[400601738,1767739849765,-767.7842514,0.0004096,2]
[400601740,1767739849775,-181.4121269,0.0004096,2]
[400601742,1767739849784,-153.0,0.00040969,120]
[400601744,1767739849794,-6921.24420568,0.00041,30]
[400601746,1767739849803,-250.0,0.00041,45]
[400601748,1767739849812,-1456.0,0.00041,2]
[400601750,1767739849821,-402.81,0.00041,120]
[400601752,1767739849830,-191.17781272,0.00041,45]
[400601754,1767739849839,-1161.89680024,0.00041,30]
[400601756,1767739849848,-199.49149987,0.00041,2]
[400601758,1767739849858,-1018.0,0.00041,30]
[400601760,1767739849867,-153.0,0.00041055,120]
[400601761,1767739849876,-1000.0,0.00041056,7]
[400601763,1767739849886,-237.12745582,0.00041062,120]
[400601765,1767739849895,-300.0,0.00041068,22]
[400601767,1767739849905,-153.0,0.00041069,120]
[400601769,1767739849914,-758.4462,0.00041088,30]
[400601771,1767739849923,-233.51889341,0.00041091,2]
[400601772,1767739849932,-500.0,0.00041095,120]
[400601774,1767739849941,-500.0,0.00041095,120]
[400601776,1767739849950,-500.0,0.00041095,120]
[400601778,1767739849959,-500.0,0.00041095,120]
[400601780,1767739849974,-500.0,0.00041095,120]
[400601782,1767739849985,-500.0,0.00041095,120]
[400601784,1767739849994,-500.0,0.00041095,120]
[400601786,1767739850004,-500.0,0.00041095,120]
[400601788,1767739850014,-500.0,0.00041095,2]
[400601790,1767739850023,-500.0,0.00041095,2]
[400601792,1767739850033,-500.0,0.00041095,2]
[400601795,1767739850046,-500.0,0.00041095,2]
[400601797,1767739850055,-500.0,0.00041095,2]
[400601799,1767739850065,-500.0,0.00041095,2]
[400601801,1767739850075,-500.0,0.00041095,2]
[400601802,1767739850084,-500.0,0.00041095,2]
[400601804,1767739850095,-500.0,0.00041095,2]
[400601806,1767739850104,-500.0,0.00041095,2]
[400601808,1767739850113,-500.0,0.00041095,2]
[400601810,1767739850122,-500.0,0.00041095,2]
[400601812,1767739850132,-322.07363945,0.00041095,2]
[400601814,1767739850141,-500.0,0.00041095,2]
[400601816,1767739850150,-500.0,0.00041095,2]
[400601818,1767739850160,-500.0,0.00041095,2]
[400601820,1767739850170,-500.0,0.00041095,2]
[400601822,1767739850179,-500.0,0.00041095,2]
[400601824,1767739850188,-500.0,0.00041095,2]
[400601826,1767739850199,-500.0,0.00041095,2]
[400601827,1767739850208,-500.0,0.00041095,2]
[400601828,1767739850218,-500.0,0.00041095,2]
[400601829,1767739850227,-500.0,0.00041095,2]
[400601830,1767739850235,-500.0,0.00041095,2]
[400601831,1767739850245,-500.0,0.00041095,2]
[400601832,1767739850254,-500.0,0.00041095,2]
[400601833,1767739850263,-500.0,0.00041095,2]
[400601834,1767739850273,-500.0,0.00041095,2]
[400601835,1767739850282,-500.0,0.00041095,2]
[400601836,1767739850291,-500.0,0.00041095,2]
[400601837,1767739850300,-500.0,0.00041095,2]
[400601838,1767739850309,-500.0,0.00041095,2]
[400601839,1767739850319,-500.0,0.00041095,2]
[400601840,1767739850328,-500.0,0.00041095,2]
[400601842,1767739850338,-162.71277919,0.00041095,2]
[400601844,1767739850347,-500.0,0.00041095,2]
[400601846,1767739850357,-500.0,0.00041095,2]
[400601848,1767739850366,-500.0,0.00041095,2]
[400601850,1767739850375,-500.0,0.00041095,2]
[400601852,1767739850384,-500.0,0.00041095,2]
[400601854,1767739850394,-500.0,0.00041095,2]
[400601856,1767739850403,-500.0,0.00041095,2]
[400601858,1767739850412,-500.0,0.00041095,2]
[400601860,1767739850422,-500.0,0.00041095,2]
[400601862,1767739850431,-500.0,0.00041095,2]
[400601864,1767739850441,-500.0,0.00041095,2]
[400601866,1767739850450,-500.0,0.00041095,2]
[400601868,1767739850460,-500.0,0.00041095,2]
[400601870,1767739850469,-500.0,0.00041095,2]
[400601872,1767739850478,-500.0,0.00041095,2]
[400601874,1767739850487,-500.0,0.00041095,2]
[400601876,1767739850497,-500.0,0.00041095,2]
[400601878,1767739850506,-500.0,0.00041095,2]
[400601880,1767739850515,-500.0,0.00041095,2]
[400601882,1767739850524,-500.0,0.00041095,2]
[400601884,1767739850533,-500.0,0.00041095,2]
[400601886,1767739850542,-192.03537295,0.00041095,2]
[400601888,1767739850552,-500.0,0.00041095,10]
[400601890,1767739850561,-500.0,0.00041095,10]
[400601892,1767739850570,-500.0,0.00041095,10]
[400601894,1767739850579,-500.0,0.00041095,10]
[400601896,1767739850588,-500.0,0.00041095,10]
[400601898,1767739850598,-500.0,0.00041095,10]
[400601900,1767739850607,-500.0,0.00041095,10]
[400601902,1767739850616,-500.0,0.00041095,10]
[400601904,1767739850626,-500.0,0.00041095,10]
[400601906,1767739850635,-500.0,0.00041095,10]
[400601908,1767739850644,-500.0,0.00041095,10]
[400601910,1767739850654,-500.0,0.00041095,10]
[400601912,1767739850664,-500.0,0.00041095,10]
[400601914,1767739850673,-500.0,0.00041095,10]
[400601916,1767739850682,-500.0,0.00041095,10]
[400601918,1767739850691,-500.20943884,0.00041095,10]
[400601920,1767739850700,-513.8834858,0.00041095,120]
[400601922,1767739850709,-300.0,0.00041095,2]
[400601924,1767739850719,-999.0,0.00041095,120]
[400601926,1767739850729,-1000.0,0.00041095,2]
[400601928,1767739850738,-1000.0,0.00041095,2]
[400601930,1767739850748,-1000.0,0.00041095,2]
[400601932,1767739850757,-1000.0,0.00041095,2]
[400601934,1767739850766,-1076.95721268,0.00041095,2]
[400601936,1767739850775,-300.0,0.00041095,2]
[400601938,1767739850784,-300.0,0.00041095,2]
[400601940,1767739850793,-300.0,0.00041095,2]
[400601942,1767739850802,-300.0,0.00041095,2]
[400601944,1767739850811,-300.0,0.00041095,2]
[400601946,1767739850820,-300.0,0.00041095,2]
[400601948,1767739850829,-300.0,0.00041095,2]
[400601950,1767739850838,-338.51,0.00041095,2]
[400601952,1767739850848,-6000.0,0.00041095,5]
[400601954,1767739850857,-4000.0,0.00041095,5]
[400601956,1767739850866,-300.0,0.00041095,2]
[400601958,1767739850876,-300.0,0.00041095,2]
[400601960,1767739850885,-300.0,0.00041095,2]
[400601962,1767739850894,-300.0,0.00041095,2]
[400601963,1767739850903,-300.0,0.00041095,2]
[400601966,1767739850912,-300.0,0.00041095,2]
[400601968,1767739850922,-300.0,0.00041095,2]
[400601969,1767739850931,-300.0,0.00041095,2]
[400601971,1767739850940,-300.0,0.00041095,2]
[400601973,1767739850950,-404.81,0.00041095,2]
[400601975,1767739850959,-500.0,0.00041095,2]
[400601977,1767739850972,-500.0,0.00041095,2]
[400601979,1767739850981,-500.0,0.00041095,2]
[400601981,1767739850990,-500.0,0.00041095,2]
[400601983,1767739850999,-500.0,0.00041095,2]
[400601985,1767739851009,-500.0,0.00041095,2]
[400601987,1767739851018,-500.0,0.00041095,2]
[400601989,1767739851028,-500.0,0.00041095,2]
[400601991,1767739851039,-500.0,0.00041095,2]
[400601993,1767739851048,-500.0,0.00041095,2]
[400601995,1767739851059,-500.0,0.00041095,2]
[400601997,1767739851068,-500.0,0.00041095,2]
[400601999,1767739851077,-500.0,0.00041095,2]
[400602001,1767739851087,-500.0,0.00041095,2]
[400602003,1767739851096,-500.0,0.00041095,15]
[400602005,1767739851105,-500.0,0.00041095,15]
[400602007,1767739851114,-500.0,0.00041095,15]
[400602009,1767739851123,-500.0,0.00041095,15]
[400602011,1767739851132,-500.0,0.00041095,15]
[400602013,1767739851141,-600.0,0.00041096,120]
[400602015,1767739851151,-150.0,0.00041096,10]
[400602017,1767739851159,-1000.0,0.00041096,30]
[400602019,1767739851168,-1000.0,0.00041096,30]
[400602020,1767739851178,-1000.0,0.00041096,30]
[400602022,1767739851187,-1000.0,0.00041096,30]
[400602024,1767739851196,-1000.0,0.00041096,30]
[400602026,1767739851205,-1000.0,0.00041096,30]
[400602028,1767739851215,-1000.0,0.00041096,30]
[400602030,1767739851224,-457.0,0.00041096,30]
[400602032,1767739851233,-828.0,0.00041096,13]
[400602034,1767739851242,-1000.0,0.00041096,30]
[400602036,1767739851252,-1000.0,0.00041096,30]
[400602038,1767739851261,-1000.0,0.00041096,30]
[400602040,1767739851270,-1000.0,0.00041096,30]
[400602042,1767739851279,-1000.0,0.00041096,30]
[400602044,1767739851288,-1000.0,0.00041096,30]
[400602046,1767739851298,-1000.0,0.00041096,30]
[400602048,1767739851307,-1000.0,0.00041096,30]
[400602050,1767739851317,-1000.0,0.00041096,30]
[400602053,1767739851335,-1000.0,0.00041096,30]
[400602055,1767739851344,-1000.0,0.00041096,30]
[400602057,1767739851353,-1000.0,0.00041096,30]
[400602059,1767739851362,-1000.0,0.00041096,30]
[400602061,1767739851372,-1000.0,0.00041096,30]
[400602063,1767739851381,-1000.0,0.00041096,30]
[400602065,1767739851390,-1000.0,0.00041096,30]
[400602067,1767739851400,-1000.0,0.00041096,30]
[400602069,1767739851409,-1000.0,0.00041096,30]
[400602071,1767739851419,-1000.0,0.00041096,30]
[400602073,1767739851427,-1000.0,0.00041096,30]
[400602075,1767739851436,-1000.0,0.00041096,30]
[400602077,1767739851445,-1000.0,0.00041096,30]
[400602079,1767739851454,-1000.0,0.00041096,30]
[400602081,1767739851463,-1000.0,0.00041096,30]
[400602083,1767739851473,-1000.0,0.00041096,30]
[400602085,1767739851482,-1000.0,0.00041096,30]
[400602087,1767739851491,-1000.0,0.00041096,30]
[400602088,1767739851500,-1000.0,0.00041096,30]
[400602090,1767739851509,-1000.0,0.00041096,30]
[400602093,1767739851520,-1000.0,0.00041096,30]
[400602094,1767739851529,-1000.0,0.00041096,30]
[400602096,1767739851539,-1000.0,0.00041096,30]
[400602098,1767739851548,-1000.0,0.00041096,30]
[400602100,1767739851557,-1000.0,0.00041096,30]
[400602102,1767739851566,-1000.0,0.00041096,30]
[400602105,1767739851576,-1000.0,0.00041096,30]
[400602106,1767739851585,-1000.0,0.00041096,30]
[400602108,1767739851594,-1000.0,0.00041096,30]
[400602110,1767739851602,-1000.0,0.00041096,30]
[400602112,1767739851612,-1000.0,0.00041096,30]
[400602133,1767739851801,-1000.0,0.00041096,30]
[400602136,1767739851810,-1000.0,0.00041096,30]
[400602138,1767739851819,-1000.0,0.00041096,30]
[400602140,1767739851828,-1000.0,0.00041096,30]
[400602142,1767739851839,-1000.0,0.00041096,30]
[400602143,1767739851850,-1000.0,0.00041096,30]
[400602145,1767739851860,-1000.0,0.00041096,30]
[400602147,1767739851869,-1000.0,0.00041096,30]
[400602149,1767739851877,-1000.0,0.00041096,30]
[400602151,1767739851886,-1000.0,0.00041096,30]
[400602154,1767739851895,-1000.0,0.00041096,30]
[400602155,1767739851905,-1000.0,0.00041096,30]
[400602156,1767739851914,-1000.0,0.00041096,30]
[400602157,1767739851923,-1000.0,0.00041096,30]
[400602158,1767739851933,-1000.0,0.00041096,30]
[400602159,1767739851942,-1000.0,0.00041096,30]
[400602160,1767739851951,-1000.0,0.00041096,30]
[400602161,1767739851960,-1000.0,0.00041096,30]
[400602162,1767739851975,-1000.0,0.00041096,30]
[400602163,1767739851984,-1000.0,0.00041096,30]
[400602164,1767739851994,-1000.0,0.00041096,30]
[400602165,1767739852003,-1000.0,0.00041096,30]
[400602167,1767739852013,-1000.0,0.00041096,30]
[400602169,1767739852023,-1000.0,0.00041096,30]
[400602171,1767739852032,-1000.0,0.00041096,30]
[400602173,1767739852042,-1000.0,0.00041096,30]
[400602175,1767739852051,-1000.0,0.00041096,30]
[400602176,1767739852060,-1000.0,0.00041096,30]
[400602178,1767739852069,-1000.0,0.00041096,30]
[400602179,1767739852078,-1000.0,0.00041096,30]
[400602180,1767739852088,-1000.0,0.00041096,30]
[400602181,1767739852097,-1000.0,0.00041096,30]
[400602182,1767739852106,-1000.0,0.00041096,30]
[400602183,1767739852115,-1000.0,0.00041096,30]
[400602184,1767739852126,-1000.0,0.00041096,30]
[400602185,1767739852135,-1000.0,0.00041096,30]
[400602186,1767739852144,-1000.0,0.00041096,30]
[400602187,1767739852153,-1000.0,0.00041096,30]
[400602189,1767739852162,-1000.0,0.00041096,30]
[400602191,1767739852171,-1000.0,0.00041096,30]
[400602193,1767739852181,-1000.0,0.00041096,30]
[400602195,1767739852190,-1000.0,0.00041096,30]
[400602197,1767739852200,-1000.0,0.00041096,30]
[400602199,1767739852208,-1000.0,0.00041096,30]
[400602201,1767739852217,-1000.0,0.00041096,30]
[400602203,1767739852227,-1000.0,0.00041096,30]
[400602204,1767739852236,-1000.0,0.00041096,30]
[400602205,1767739852245,-1000.0,0.00041096,30]
[400602206,1767739852254,-1000.0,0.00041096,30]
[400602207,1767739852263,-1000.0,0.00041096,30]
[400602208,1767739852272,-1000.0,0.00041096,30]
[400602209,1767739852281,-1000.0,0.00041096,30]
[400602210,1767739852290,-2000.0,0.00041096,13]
[400602211,1767739852299,-2000.0,0.00041096,13]
[400602212,1767739852308,-2000.0,0.00041096,13]
[400602213,1767739852317,-2000.0,0.00041096,13]
[400602214,1767739852326,-2000.0,0.00041096,13]
[400602216,1767739852336,-2000.0,0.00041096,13]
[400602218,1767739852345,-2000.0,0.00041096,13]
[400602220,1767739852357,-2000.0,0.00041096,13]
[400602222,1767739852366,-2000.0,0.00041096,13]
[400602224,1767739852376,-2000.0,0.00041096,13]
[400602226,1767739852386,-1312.0,0.00041096,13]
[400602227,1767739852395,-1225.5,0.00041096,69]
[400602228,1767739852405,-860.0,0.00041096,114]
[400602229,1767739852414,-1163.55,0.000411,14]
[400602230,1767739852424,-153.0,0.00041155,120]
[400602231,1767739852433,-153.0,0.00041169,120]
[400602232,1767739852443,-1040.62,0.000412,30]
[400602233,1767739852452,-153.0,0.00041255,120]
[400602234,1767739852461,-158.13,0.00041256,2]
[400602235,1767739852470,-153.0,0.00041269,120]
[400602236,1767739852480,-758.4462,0.00041288,30]
[400602237,1767739852489,-3448.92,0.000413,30]
[400602238,1767739852498,-152.0,0.000413,120]
[400602239,1767739852508,-843.90936496,0.00041315,30]
[400602240,1767739852518,-153.0,0.00041355,120]
[400602241,1767739852527,-153.0,0.00041369,120]
[400602242,1767739852537,-600.0,0.0004137,120]
[400602243,1767739852546,-1000.0,0.0004137,30]
[400602244,1767739852556,-152.0,0.000414,120]
[400602245,1767739852565,-2823.5,0.0004141,30]
[400602246,1767739852575,-1000.0,0.00041431,14]
[400602247,1767739852585,-153.0,0.00041455,120]
[400602248,1767739852595,-153.0,0.00041469,120]
[400602249,1767739852604,-843.90936496,0.00041479,30]
[400602250,1767739852614,-758.4462,0.00041488,30]
[400602251,1767739852623,-160.0,0.000415,39]
[400602252,1767739852633,-160.0,0.000415,39]
[400602253,1767739852642,-160.0,0.000415,39]
[400602254,1767739852651,-250.0,0.000415,45]
[400602255,1767739852661,-751.7661,0.000415,30]
[400602256,1767739852670,-282.19986981,0.000415,120]
[400602257,1767739852679,-1115.9,0.000415,14]
[400602258,1767739852688,-1000.0,0.00041501,14]
[400602259,1767739852697,-466.43,0.00041507,30]
[400602260,1767739852707,-796.19226871,0.00041508,2]
[400602261,1767739852716,-153.0,0.00041555,120]
[400602262,1767739852725,-661.18,0.00041562,30]
[400602263,1767739852736,-482.51,0.00041562,30]
[400602264,1767739852745,-700.0,0.00041591,60]
[400602265,1767739852754,-3000.0,0.00041591,60]
[400602266,1767739852763,-600.0,0.00041644,120]
[400602267,1767739852772,-843.90936496,0.00041644,30]
[400602268,1767739852782,-1999.0,0.00041644,30]
[400602269,1767739852791,-153.0,0.00041655,120]
[400602270,1767739852800,-758.4462,0.00041688,30]
[400602271,1767739852810,-188.35701994,0.00041711,2]
[400602272,1767739852819,-1353.9,0.0004172,30]
[400602273,1767739852828,-153.0,0.00041755,120]
[400602274,1767739852838,-3077.60518,0.000418,120]
[400602275,1767739852848,-843.90936496,0.00041808,30]
[400602276,1767739852857,-152.56,0.00041836,30]
[400602277,1767739852869,-207.71,0.00041836,30]
[400602278,1767739852878,-610.13,0.00041836,30]
[400602279,1767739852887,-171.25,0.00041836,30]
[400602280,1767739852897,-150.0,0.00041836,30]
[400602281,1767739852908,-833.0,0.00041842,11]
[400602282,1767739852917,-162.0,0.00041842,11]
[400602283,1767739852927,-162.0,0.00041842,11]
[400602284,1767739852937,-833.0,0.00041849,11]
[400602285,1767739852946,-162.0,0.00041855,11]
[400602286,1767739852956,-153.0,0.00041855,120]
[400602287,1767739852968,-833.0,0.00041861,11]
[400602288,1767739852978,-960.0,0.00041861,11]
[400602289,1767739852987,-800.0,0.00041865,60]
[400602290,1767739852996,-833.0,0.00041867,11]
[400602291,1767739853007,-833.0,0.00041871,11]
[400602292,1767739853016,-162.0,0.00041871,11]
[400602293,1767739853026,-833.0,0.00041884,11]
[400602294,1767739853035,-162.0,0.00041884,11]
[400602295,1767739853046,-758.4462,0.00041888,30]
[400602296,1767739853056,-500.0,0.00041899,30]
[400602297,1767739853066,-1000.0,0.000419,7]
[400602298,1767739853075,-152.0,0.000419,120]
[400602299,1767739853085,-564.59586439,0.000419,120]
[400602300,1767739853095,-564.59586424,0.000419,120]
[400602301,1767739853104,-564.59586424,0.000419,120]
[400602302,1767739853114,-564.59586424,0.000419,120]
[400602303,1767739853123,-564.59586424,0.000419,120]
[400602304,1767739853134,-564.59586424,0.000419,120]
[400602305,1767739853144,-564.59586424,0.000419,120]
[400602306,1767739853153,-564.59586424,0.000419,120]
[400602307,1767739853162,-564.59586424,0.000419,120]
[400602308,1767739853172,-564.59586424,0.000419,120]
[400602309,1767739853181,-564.59586424,0.000419,120]
[400602310,1767739853191,-564.59586424,0.000419,120]
[400602311,1767739853200,-564.59586424,0.000419,120]
[400602312,1767739853209,-564.59586424,0.000419,120]
[400602313,1767739853219,-564.59586424,0.000419,120]
[400602314,1767739853228,-564.59586424,0.000419,120]
[400602315,1767739853238,-564.59586424,0.000419,120]
[400602316,1767739853247,-564.59586424,0.000419,120]
[400602317,1767739853257,-564.59586424,0.000419,120]
[400602318,1767739853267,-564.59586424,0.000419,120]
[400602319,1767739853277,-600.0,0.00041918,120]
[400602320,1767739853286,-1000.0,0.00041918,30]
[400602321,1767739853296,-200.0,0.00041918,10]
[400602322,1767739853306,-153.0,0.00041955,120]
[400602323,1767739853315,-843.90936496,0.00041973,30]
[400602324,1767739853326,-1456.0,0.00042,30]
[400602325,1767739853336,-1163.55,0.00042,14]
[400602326,1767739853345,-3448.92,0.00042,30]
[400602327,1767739853355,-199.0,0.00042,30]
[400602329,1767739853364,-171.435863,0.00042,120]
[400602332,1767739853374,-1018.0,0.00042,30]
[400602333,1767739853383,-1329.0,0.00042011,2]
[400602334,1767739853393,-614.0,0.00042011,2]
[400602335,1767739853402,-1405.0,0.00042011,2]
[400602336,1767739853412,-3466.0,0.00042011,2]
[400602337,1767739853421,-1266.0,0.00042011,2]
[400602338,1767739853431,-433.0,0.00042011,2]
[400602339,1767739853440,-914.0,0.00042011,2]
[400602340,1767739853449,-150.0,0.00042011,2]
[400602341,1767739853459,-6549.0,0.00042011,2]
[400602342,1767739853468,-2435.0,0.00042011,2]
[400602343,1767739853478,-4817.0,0.00042011,2]
[400602344,1767739853488,-716.97946142,0.00042052,2]
[400602345,1767739853498,-373.07297731,0.00042052,2]
[400602346,1767739853507,-320.74051982,0.00042052,2]
[400602347,1767739853517,-621.78829552,0.00042054,2]
[400602348,1767739853526,-153.0,0.00042055,120]
[400602349,1767739853536,-825.65138265,0.00042056,2]
[400602350,1767739853545,-502.0,0.00042069,16]
[400602351,1767739853555,-150.38,0.000421,90]
[400602352,1767739853564,-152.0,0.000421,120]
[400602353,1767739853574,-843.90936496,0.00042137,30]
[400602354,1767739853584,-2362.0,0.00042139,30]
[400602355,1767739853593,-700.0,0.00042139,60]
[400602356,1767739853603,-3000.0,0.00042139,60]
[400602357,1767739853613,-153.0,0.00042155,120]
[400602358,1767739853623,-833.0,0.00042163,16]
[400602359,1767739853632,-162.0,0.00042163,16]
[400602360,1767739853642,-482.51,0.00042164,30]
[400602361,1767739853651,-482.51,0.00042164,30]
[400602362,1767739853661,-482.51,0.00042164,30]
[400602363,1767739853671,-164.0,0.00042175,16]
[400602364,1767739853680,-833.0,0.00042181,16]
[400602365,1767739853691,-4041.2752086,0.00042185,7]
[400602366,1767739853701,-833.0,0.00042187,16]
[400602367,1767739853711,-999.0,0.00042191,120]
[400602368,1767739853720,-600.0,0.00042192,120]
[400602369,1767739853731,-1999.0,0.00042192,30]
[400602370,1767739853740,-833.0,0.00042198,16]
[400602371,1767739853750,-1040.62,0.000422,30]
[400602372,1767739853759,-833.0,0.00042204,16]
[400602373,1767739853768,-162.0,0.00042204,16]
[400602374,1767739853778,-153.0,0.00042255,120]
[400602375,1767739853787,-167.99433605,0.000423,120]
[400602376,1767739853796,-384.68,0.000423,120]
[400602377,1767739853805,-843.90936496,0.00042301,30]
[400602378,1767739853815,-11844.77875623,0.00042347,5]
[400602379,1767739853824,-153.0,0.00042355,120]
[400602380,1767739853833,-466.43,0.00042356,30]
[400602381,1767739853842,-466.43,0.00042356,30]
[400602382,1767739853851,-466.43,0.00042356,30]
[400602383,1767739853860,-1307.44549302,0.000424,10]
[400602384,1767739853869,-800.0,0.00042413,60]
[400602385,1767739853878,-1353.9,0.00042417,30]
[400602386,1767739853887,-153.0,0.00042455,120]